fUSD/lending_fUSD_20260426
["ID","MTS","AMOUNT","RATE_DAILY","PERIOD"]
[421134723,1777138232829,-1093.83820704,8.699e-05,3]
[421134724,1777138232839,-1093.83820704,8.699e-05,3]
[421134725,1777138232849,-1000.0,8.699e-05,2]
[421134726,1777138232859,-1000.0,8.699e-05,2]
[421134727,1777138232869,-1000.0,8.699e-05,2]
[421134728,1777138232879,-1000.0,8.699e-05,2]
[421134729,1777138232890,-1000.0,8.699e-05,2]
[421134730,1777138232900,-1000.0,8.699e-05,2]
[421134731,1777138232911,-1093.86464612,8.699e-05,3]
[421134732,1777138232921,-1093.86464612,8.699e-05,3]
[421134733,1777138232932,-169.08750551,8.699e-05,2]
[421134734,1777138232943,-558.2,8.699e-05,2]
[421134735,1777138232953,-500.0,8.699e-05,2]
[421134736,1777138232963,-500.0,8.699e-05,2]
[421134737,1777138232973,-500.0,8.699e-05,2]
[421134738,1777138232983,-415.67733749,8.699e-05,2]
[421134739,1777138232993,-500.0,8.699e-05,2]
[421134740,1777138233003,-500.0,8.699e-05,2]
[421134741,1777138233013,-500.0,8.699e-05,2]
[421134742,1777138233023,-500.0,8.699e-05,2]
[421134743,1777138233034,-500.0,8.699e-05,2]
[421134744,1777138233044,-500.0,8.699e-05,2]
[421134745,1777138233054,-500.0,8.699e-05,2]
[421134746,1777138233064,-500.0,8.699e-05,2]
[421134747,1777138233074,-500.0,8.699e-05,2]
[421134748,1777138233084,-500.0,8.699e-05,2]
[421134749,1777138233095,-310.29737573,8.699e-05,2]
[421134750,1777138233105,-500.0,8.699e-05,2]
[421134751,1777138233118,-706.0,8.7e-05,5]
[421134752,1777138233128,-741.0,8.7e-05,5]
[421134753,1777138233138,-200.0,8.7e-05,2]
[421134754,1777138233149,-101327.55494491,8.7e-05,2]
[421134755,1777138234541,-166182.90286387,8.7e-05,2]
[421134756,1777138234554,-57151.20721284,8.7e-05,2]
[421134757,1777138234566,-911.72705474,8.7e-05,2]
[421134758,1777138234616,-1051.54508863,8.7e-05,2]
[421134759,1777138234632,-3213.21263462,8.7e-05,2]
[421134768,1777138237933,-2145.97500025,8.7e-05,2]
[421134769,1777138237989,-271.9165,8.7e-05,2]
[421134770,1777138238001,-6232.98184371,8.7e-05,2]
[421134771,1777138238013,-12943.0499912,8.7e-05,2]
[421134772,1777138238151,-640.14698549,8.7e-05,2]
[421134773,1777138238163,-274.12867043,8.7e-05,2]
[421134774,1777138238175,-741.54098972,8.7e-05,2]
[421134775,1777138238187,-5753.47089063,8.7e-05,2]
[421134782,1777138239976,-459067.50778169,8.7e-05,2]
[421134783,1777138239988,-278.38,8.7e-05,2]
[421134784,1777138240030,-1166.4,8.7e-05,2]
[421134791,1777138242788,-172514.73217766,8.7e-05,2]
[421134792,1777138243111,-617.81848648,8.7e-05,2]
[421134793,1777138243122,-356.75629422,8.7e-05,2]
[421134805,1777138246798,-553.4858,8.7e-05,2]
[421134811,1777138246845,-1262459.99388699,8.7e-05,2]
[421134812,1777138248069,-555.48318851,8.7e-05,2]
[421134813,1777138248090,-547.44,8.7e-05,2]
[421134814,1777138248109,-1354.89036908,8.7e-05,2]
[421134815,1777138462233,259.0,8.384e-05,2]
[421134816,1777138463522,1200.0,8.383e-05,2]
[421134817,1777138501194,1200.0,8.383e-05,2]
[421134818,1777138562383,300.0,8.383e-05,2]
[421134819,1777138562593,300.0,8.383e-05,2]
[421134820,1777138570768,157.0,8.383e-05,3]
[421134821,1777138621370,300.0,8.383e-05,2]
[421134822,1777138626230,158.0,8.383e-05,3]
[421134823,1777138681542,300.0,8.383e-05,2]
[421134824,1777138692648,158.0,8.383e-05,3]
[421134825,1777138741196,300.0,8.383e-05,2]
[421134826,1777138742565,300.0,8.383e-05,2]
[421134827,1777138742649,281.0,8.383e-05,2]
[421134828,1777138747445,158.0,8.383e-05,3]
[421134829,1777138801138,300.0,8.383e-05,2]
[421134830,1777138801178,1200.0,8.383e-05,2]
[421134831,1777138811893,156.0,8.383e-05,3]
[421134832,1777138812712,168.0,8.383e-05,3]
[421134833,1777138865204,169.0,8.383e-05,3]
[421134834,1777138928136,578.20924308,8.384e-05,2]
[421134835,1777138930170,670.58624095,8.384e-05,2]
[421134836,1777138930654,1328.27659266,8.384e-05,2]
[421134837,1777138933369,58.93792331,8.384e-05,2]
[421134838,1777138933392,246.85334284,8.384e-05,2]
[421134839,1777138933708,287.0,8.383e-05,2]
[421134840,1777138934319,-9341.75401937,8.384e-05,2]
[421134841,1777138934354,-10000.01,8.384e-05,2]
[421134842,1777138934433,-4460.16048063,8.384e-05,2]
[421134843,1777138937446,151.0,8.384e-05,2]
[421134844,1777138940727,194.72792766,8.384e-05,2]
[421134845,1777139113277,150.0,7.816e-05,2]
[421134846,1777139113339,150.0,7.99e-05,2]
[421134847,1777139113397,150.0,8.164e-05,2]
[421134848,1777139115287,150.0,7.816e-05,2]
[421134849,1777139115328,150.0,8.251e-05,2]
[421134850,1777139115521,150.0,7.816e-05,2]
[421134851,1777139115585,150.0,8.251e-05,2]
[421134852,1777139119002,150.0,7.816e-05,2]
[421134853,1777139119147,150.0,7.816e-05,2]
[421134854,1777139119182,150.0,7.925e-05,2]
[421134855,1777139119228,150.0,8.034e-05,2]
[421134856,1777139119297,150.0,8.142e-05,2]
[421134857,1777139119380,150.0,8.251e-05,2]
[421134858,1777139124019,150.0,7.816e-05,2]
[421134859,1777139124083,150.0,7.99e-05,2]
[421134860,1777139124159,150.0,8.164e-05,2]
[421134861,1777139131187,150.0,7.816e-05,2]
[421134862,1777139131255,150.0,7.99e-05,2]
[421134863,1777139131325,150.0,8.164e-05,2]
[421134864,1777139131593,150.0,7.816e-05,2]
[421134865,1777139131642,150.0,8.106e-05,2]
[421134866,1777139325433,-344.787,8.31e-05,2]
[421134867,1777139325463,-4505.39,8.312e-05,2]
[421134868,1777139325774,-500.0,8.314e-05,2]
[421134869,1777139325804,-3093.90695849,8.315e-05,2]
[421134870,1777139328976,-2812.19608302,8.315e-05,2]
[421134871,1777139329007,-181.84247483,8.315e-05,2]
[421134872,1777139329037,-300.0,8.319e-05,2]
[421134873,1777139329068,-500.0,8.326e-05,2]
[421134874,1777139329098,-500.0,8.326e-05,2]
[421134875,1777139329128,-500.0,8.326e-05,2]
[421134876,1777139329265,-66.20495664,8.326e-05,2]
[421134877,1777139332553,-433.79504336,8.326e-05,2]
[421134878,1777139332584,-500.0,8.326e-05,2]
[421134879,1777139332615,-500.0,8.326e-05,2]
[421134880,1777139332646,-500.0,8.326e-05,2]
[421134881,1777139332677,-500.0,8.326e-05,2]
[421134882,1777139332708,-500.0,8.326e-05,2]
[421134883,1777139332738,-500.0,8.326e-05,2]
[421134884,1777139332769,-535.9698256,8.326e-05,2]
[421134885,1777139332799,-385.31490086,8.326e-05,2]
[421134886,1777139332829,-500.0,8.326e-05,2]
[421134887,1777139333123,-289.85046036,8.326e-05,2]
[421134888,1777139334500,-210.14953964,8.326e-05,2]
[421134889,1777139334532,-500.0,8.326e-05,2]
[421134890,1777139334561,-500.0,8.326e-05,2]
[421134891,1777139334591,-500.0,8.326e-05,2]
[421134892,1777139334622,-500.0,8.326e-05,2]
[421134893,1777139334650,-500.0,8.326e-05,2]
[421134894,1777139334679,-500.0,8.326e-05,2]
[421134895,1777139334710,-500.0,8.326e-05,2]
[421134896,1777139334743,-500.0,8.326e-05,2]
[421134897,1777139334772,-500.0,8.326e-05,2]
[421134898,1777139334803,-261.42689825,8.326e-05,2]
[421134899,1777139334922,-56.85712422,8.326e-05,2]
[421134900,1777139363843,791.16111,7.7e-05,2]
[421134902,1777139431973,-250.0,8.33e-05,2]
[421134903,1777139431987,-500.0,8.333e-05,2]
[421134904,1777139431998,-150.0,8.338e-05,2]
[421134905,1777139432008,-150.0,8.338e-05,2]
[421134906,1777139432018,-150.0,8.338e-05,2]
[421134907,1777139432028,-500.0,8.348e-05,2]
[421134908,1777139432038,-150.0,8.359e-05,2]
[421134909,1777139432048,-152.0,8.369e-05,7]
[421134910,1777139432058,-172.0,8.383e-05,3]
[421134911,1777139432068,-156.0,8.383e-05,3]
[421134912,1777139432078,-578.20924308,8.384e-05,2]
[421134913,1777139432088,-151.0,8.386e-05,2]
[421134914,1777139432098,-302.0,8.386e-05,2]
[421134915,1777139432108,-174.61919141,8.386e-05,2]
[421134916,1777139432118,-150.0,8.395e-05,2]
[421134917,1777139432128,-492.0,8.419e-05,2]
[421134918,1777139432137,-150.0,8.426e-05,2]
[421134919,1777139432147,-288.32213193,8.426e-05,2]
[421134920,1777139432158,-151.0,8.441e-05,2]
[421134921,1777139432168,-150.0,8.468e-05,2]
[421134922,1777139432178,-151.0,8.496e-05,2]
[421134923,1777139432188,-9729.5611,8.5e-05,2]
[421134924,1777139432199,-150.0,8.511e-05,2]
[421134925,1777139432210,-150.0,8.511e-05,2]
[421134926,1777139432220,-150.0,8.511e-05,2]
[421134927,1777139432230,-150.0,8.525e-05,2]
[421134928,1777139432240,-151.19123662,8.526e-05,3]
[421134929,1777139432251,-500.0,8.526e-05,3]
[421134930,1777139432261,-500.0,8.526e-05,3]
[421134931,1777139432271,-500.0,8.526e-05,3]
[421134932,1777139432282,-500.0,8.526e-05,3]
[421134933,1777139432292,-500.0,8.526e-05,3]
[421134934,1777139432301,-500.0,8.526e-05,3]
[421134935,1777139432311,-500.0,8.526e-05,3]
[421134936,1777139432321,-420.30315019,8.526e-05,3]
[421134938,1777139432330,-151.0,8.551e-05,2]
[421134941,1777139432340,-150.0,8.576e-05,2]
[421134944,1777139432362,-241.416,8.588e-05,2]
[421134947,1777139432375,-3959.416,8.588e-05,2]
[421134949,1777139432386,-27912.3012,8.589e-05,2]
[421134951,1777139432397,-152.0,8.59e-05,7]
[421134953,1777139432407,-181.84247483,8.59e-05,2]
[421134954,1777139432417,-500.0,8.599e-05,2]
[421134955,1777139432428,-500.0,8.599e-05,2]
[421134956,1777139432439,-643.71815678,8.599e-05,2]
[421134957,1777139432450,-150.0,8.599e-05,2]
[421134958,1777139432459,-500.0,8.599e-05,2]
[421134959,1777139432469,-340.97413625,8.599e-05,2]
[421134960,1777139432480,-500.0,8.599e-05,2]
[421134961,1777139432491,-434.46438632,8.599e-05,2]
[421134962,1777139432501,-500.0,8.599e-05,2]
[421134963,1777139432512,-500.0,8.599e-05,2]
[421134964,1777139432523,-454.06154344,8.599e-05,2]
[421134965,1777139432533,-510.19207608,8.599e-05,2]
[421134966,1777139432543,-500.0,8.599e-05,2]
[421134967,1777139432554,-500.0,8.599e-05,2]
[421134968,1777139432567,-374.41775968,8.599e-05,2]
[421134969,1777139432633,-125.58224032,8.599e-05,2]
[421134970,1777139432644,-500.0,8.599e-05,2]
[421134971,1777139432655,-500.0,8.599e-05,2]
[421134972,1777139432665,-643.48073757,8.599e-05,2]
[421134973,1777139432676,-500.0,8.599e-05,2]
[421134974,1777139432687,-500.0,8.599e-05,2]
[421134975,1777139432697,-500.0,8.599e-05,2]
[421134976,1777139432707,-500.0,8.599e-05,2]
[421134977,1777139432718,-267.93887295,8.599e-05,2]
[421134978,1777139432727,-5192.82126978,8.6e-05,2]
[421134982,1777139438134,-2141.82499925,8.6e-05,2]
[421134983,1777139438195,-2665.35373097,8.6e-05,2]
[421134984,1777139438205,-10277.69626023,8.6e-05,2]
[421134985,1777139438242,-89781.80467481,8.6e-05,2]
[421134986,1777139438449,-479.7224953,8.6e-05,2]
[421134992,1777139440641,-582.44356646,8.6e-05,2]
[421134994,1777139443100,-440.03944352,8.6e-05,2]
[421134995,1777139443112,-316.54370578,8.6e-05,2]
[421134996,1777139443123,-41507.3316894,8.6e-05,2]
[421134997,1777139443202,-800.76947126,8.6e-05,2]
[421134998,1777139443214,-77700.0,8.6e-05,2]
[421134999,1777139443361,-356.68,8.6e-05,2]
[421135003,1777139446933,-3823.27686458,8.6e-05,2]
[421135005,1777139878819,9095.13464156,1.31e-05,3]
[421135006,1777139878843,10000.01,1.31e-05,3]
[421135007,1777139878866,10000.01,1.31e-05,3]
[421135008,1777139878889,10000.01,1.31e-05,3]
[421135009,1777139878912,10000.01,1.31e-05,3]
[421135010,1777139878936,10000.01,1.31e-05,3]
[421135011,1777139878958,10000.01,1.31e-05,3]
[421135012,1777139878981,10000.01,1.31e-05,3]
[421135013,1777139879006,10000.01,1.31e-05,3]
[421135014,1777139879029,10000.01,1.31e-05,3]
[421135015,1777139879057,313451.69527677,1.31e-05,3]
[421135018,1777139948831,155.0,1.31e-05,3]
[421135019,1777139949205,155.0,3.034e-05,3]
[421135020,1777139949502,155.0,4.758e-05,3]
[421135021,1777139949796,155.0,6.483e-05,3]
[421135022,1777139950495,155.0,8.207e-05,3]
[421135023,1777140011498,155.0,8.207e-05,3]
[421135024,1777140013661,157.0,8.207e-05,3]
[421135025,1777140065236,155.0,8.207e-05,3]
[421135026,1777140127192,155.0,8.207e-05,3]
[421135027,1777140187623,156.0,8.207e-05,3]
[421135029,1777140247365,156.0,8.207e-05,3]
[421135030,1777140306950,150.0,7.816e-05,2]
[421135031,1777140307701,156.0,8.207e-05,3]
[421135032,1777140308911,150.0,7.816e-05,2]
[421135033,1777140309366,150.0,7.816e-05,2]
[421135034,1777140312371,150.0,7.816e-05,2]
[421135035,1777140318981,150.0,7.816e-05,2]
[421135036,1777140319141,150.0,7.816e-05,2]
[421135037,1777140324079,150.0,7.816e-05,2]
[421135038,1777140324142,150.0,8.034e-05,2]
[421135039,1777140324214,150.0,8.251e-05,2]
[421135040,1777140324469,150.0,7.816e-05,2]
[421135041,1777140369281,156.0,8.207e-05,3]
[421135042,1777140432485,151.14,7.757e-05,2]
[421135043,1777140463973,151.4,7.757e-05,2]
[421135044,1777140482597,151.32,7.757e-05,2]
[421135045,1777140483079,1601.58,7.757e-05,2]
[421135046,1777140512079,150.0,7.8e-05,2]
[421135047,1777140545258,3058.64837661,8.292e-05,2]
[421135048,1777140611492,151.0,7.757e-05,2]
[421135049,1777140611869,151.08,7.757e-05,2]
[421135050,1777140612384,151.0,7.757e-05,2]
[421135051,1777140627184,151.14,7.757e-05,2]
[421135054,1777140632529,-150.0,8.4e-05,2]
[421135055,1777140632539,-259.0,8.4e-05,2]
[421135056,1777140632549,-500.0,8.405e-05,2]
[421135057,1777140632559,-250.0,8.405e-05,2]
[421135058,1777140632568,-500.0,8.409e-05,2]
[421135060,1777140632579,-1200.0,8.41e-05,2]
[421135062,1777140632589,-300.0,8.411e-05,2]
[421135064,1777140632599,-500.0,8.411e-05,2]
[421135066,1777140632609,-150.0,8.411e-05,2]
[421135069,1777140632618,-500.0,8.411e-05,2]
[421135071,1777140632628,-150.0,8.411e-05,2]
[421135072,1777140632638,-500.0,8.411e-05,2]
[421135073,1777140632647,-500.0,8.411e-05,2]
[421135074,1777140632656,-500.0,8.411e-05,2]
[421135075,1777140632665,-440.45261193,8.411e-05,2]
[421135076,1777140632675,-153.12180854,8.411e-05,2]
[421135077,1777140632684,-151.0,8.421e-05,2]
[421135078,1777140632693,-186.83,8.425e-05,2]
[421135079,1777140632703,-578.20924308,8.425e-05,2]
[421135080,1777140632712,-150.0,8.468e-05,2]
[421135081,1777140632722,-151.0,8.476e-05,2]
[421135082,1777140632731,-150.0,8.492e-05,2]
[421135083,1777140632741,-11796.48132176,8.493e-05,2]
[421135090,1777140638465,-409.4139,8.493e-05,2]
[421135091,1777140638829,-500.0,8.493e-05,2]
[421135092,1777140638840,-12443.0499912,8.493e-05,2]
[421135212,1777140643444,-500.0,8.493e-05,2]
[421135213,1777140643455,-30593.78978704,8.493e-05,2]
[421135214,1777140643465,-1300.0,8.5e-05,3]
[421135215,1777140643475,-1447.73451279,8.516e-05,2]
[421135216,1777140643484,-151.0,8.531e-05,2]
[421135217,1777140643495,-152.65,8.579e-05,2]
[421135218,1777140643505,-151.0,8.579e-05,2]
[421135219,1777140643515,-151.0,8.579e-05,2]
[421135220,1777140643524,-151.0,8.579e-05,2]
[421135221,1777140643534,-151.35,8.579e-05,2]
[421135222,1777140643543,-151.0,8.579e-05,2]
[421135223,1777140643553,-151.0,8.579e-05,2]
[421135224,1777140643563,-151.0,8.579e-05,2]
[421135225,1777140643572,-151.0,8.579e-05,2]
[421135226,1777140643583,-151.0,8.579e-05,2]
[421135227,1777140643592,-151.0,8.579e-05,2]
[421135228,1777140643602,-151.0,8.579e-05,2]
[421135229,1777140643613,-152.04,8.579e-05,2]
[421135230,1777140643623,-151.0,8.579e-05,2]
[421135231,1777140643633,-151.0,8.579e-05,2]
[421135232,1777140643642,-151.0,8.579e-05,2]
[421135233,1777140643651,-151.0,8.579e-05,2]
[421135234,1777140643661,-151.0,8.579e-05,2]
[421135235,1777140643670,-151.0,8.579e-05,2]
[421135236,1777140643680,-151.0,8.579e-05,2]
[421135237,1777140643690,-183.42,8.584e-05,2]
[421135238,1777140643699,-183.42,8.584e-05,2]
[421135239,1777140643709,-183.43,8.584e-05,2]
[421135240,1777140643718,-151.0,8.586e-05,2]
[421135241,1777140643728,-693.17826203,8.592e-05,2]
[421135242,1777140643738,-670.58624095,8.592e-05,2]
[421135243,1777140643747,-175.90655737,8.592e-05,2]
[421135245,1777140643757,-2286.0894,8.593e-05,2]
[421135246,1777140643766,-135224.96808965,8.593e-05,2]
[421135260,1777140647507,-459594.49411705,8.593e-05,2]
[421135261,1777140786603,229.28207275,8.292e-05,2]
[421135262,1777140845051,169.0,8.292e-05,3]
[421135263,1777140905453,158.0,8.292e-05,3]
[421135264,1777140906832,169.0,8.292e-05,3]
[421135265,1777141509892,150.0,7.816e-05,2]
[421135266,1777141510456,150.0,8.106e-05,2]
[421135267,1777141510787,163.0,8.292e-05,3]
[421135268,1777141519577,150.0,7.816e-05,2]
[421135269,1777141519608,150.0,7.925e-05,2]
[421135270,1777141519671,150.0,8.034e-05,2]
[421135271,1777141519738,150.0,8.142e-05,2]
[421135272,1777141519808,150.0,8.251e-05,2]
[421135273,1777141520193,150.0,7.816e-05,2]
[421135274,1777141526219,150.0,7.816e-05,2]
[421135275,1777141526260,150.0,7.878e-05,2]
[421135276,1777141526331,150.0,7.941e-05,2]
[421135277,1777141526364,150.0,8.003e-05,2]
[421135278,1777141526482,150.0,8.065e-05,2]
[421135279,1777141526594,150.0,8.189e-05,2]
[421135280,1777141526666,150.0,8.251e-05,2]
[421135281,1777141527256,150.0,7.816e-05,2]
[421135282,1777141531935,150.0,8.127e-05,2]
[421135283,1777141532038,150.0,7.816e-05,2]
[421135284,1777141538316,150.0,7.816e-05,2]
[421135285,1777141538365,150.0,7.816e-05,2]
[421135286,1777141567700,161.0,8.292e-05,3]
[421135287,1777141668634,183.25,7.762e-05,2]
[421135288,1777141752618,638.43,7.762e-05,2]
[421135289,1777141806248,157.0,8.292e-05,3]
[421135290,1777141831610,-150.0,8.313e-05,2]
[421135291,1777141831621,-300.0,8.319e-05,2]
[421135292,1777141831630,-59.76626416,8.324e-05,2]
[421135293,1777141831641,-440.23373584,8.324e-05,2]
[421135294,1777141831650,-250.0,8.324e-05,2]
[421135295,1777141831659,-500.0,8.336e-05,2]
[421135296,1777141831669,-500.0,8.356e-05,2]
[421135297,1777141831678,-150.0,8.359e-05,2]
[421135298,1777141831688,-150.0,8.375e-05,2]
[421135299,1777141831697,-1200.0,8.392e-05,2]
[421135300,1777141831706,-12443.05,8.393e-05,2]
[421135301,1777141831715,-150.0,8.395e-05,2]
[421135302,1777141831724,-150.0,8.437e-05,2]
[421135303,1777141831734,-150.0,8.468e-05,2]
[421135304,1777141831743,-578.20924308,8.492e-05,2]
[421135305,1777141831753,-150.0,8.492e-05,2]
[421135306,1777141831762,-802.9308,8.493e-05,2]
[421135307,1777141831771,-35723.3028,8.493e-05,2]
[421135308,1777141831781,-150.0,8.499e-05,2]
[421135309,1777141831791,-4031.221,8.505e-05,2]
[421135310,1777141831800,-240.374,8.505e-05,2]
[421135311,1777141831809,-150.0,8.561e-05,2]
[421135312,1777141831818,-150.0,8.576e-05,2]
[421135313,1777141831827,-151.0,8.578e-05,2]
[421135314,1777141831836,-638.43,8.579e-05,2]
[421135315,1777141831846,-1374.6508199,8.583e-05,2]
[421135316,1777141831855,-30130.440169,8.583e-05,2]
[421135317,1777141831864,-1039.7512748,8.583e-05,2]
[421135318,1777141831873,-157.9876733,8.583e-05,2]
[421135319,1777141831883,-638.43,8.584e-05,2]
[421135320,1777141831892,-183.44,8.584e-05,2]
[421135321,1777141831901,-638.43,8.584e-05,2]
[421135322,1777141831910,-151.0,8.59e-05,2]
[421135323,1777141831920,-557.93,8.592e-05,2]
[421135324,1777141831930,-500.0,8.592e-05,2]
[421135325,1777141831939,-500.0,8.592e-05,2]
[421135326,1777141831948,-500.0,8.592e-05,2]
[421135327,1777141831957,-500.0,8.592e-05,2]
[421135328,1777141831966,-592.08031437,8.592e-05,2]
[421135329,1777141831975,-500.0,8.592e-05,2]
[421135330,1777141831985,-500.0,8.592e-05,2]
[421135331,1777141831994,-500.0,8.592e-05,2]
[421135333,1777141832007,-500.0,8.592e-05,2]
[421135335,1777141832016,-500.0,8.592e-05,2]
[421135337,1777141832026,-500.0,8.592e-05,2]
[421135339,1777141832035,-500.0,8.592e-05,2]
[421135341,1777141832045,-500.0,8.592e-05,2]
[421135342,1777141832054,-500.0,8.592e-05,2]
[421135343,1777141832063,-500.0,8.592e-05,2]
[421135344,1777141832072,-500.0,8.592e-05,2]
[421135345,1777141832082,-500.0,8.592e-05,2]
[421135346,1777141832091,-500.0,8.592e-05,2]
[421135347,1777141832101,-500.0,8.592e-05,2]
[421135348,1777141832110,-500.0,8.592e-05,2]
[421135349,1777141832119,-500.0,8.592e-05,2]
[421135350,1777141832129,-500.0,8.592e-05,2]
[421135351,1777141832138,-500.0,8.592e-05,2]
[421135352,1777141832148,-537.67659244,8.592e-05,2]
[421135353,1777141832157,-500.0,8.592e-05,2]
[421135354,1777141832166,-292.26154443,8.592e-05,2]
[421135355,1777141832175,-500.0,8.592e-05,2]
[421135356,1777141832191,-229.80933738,8.592e-05,2]
[421135357,1777141832216,-500.0,8.592e-05,2]
[421135358,1777141832234,-500.0,8.592e-05,2]
[421135359,1777141832256,-500.0,8.592e-05,2]
[421135360,1777141832276,-500.0,8.592e-05,2]
[421135361,1777141832298,-423.22428398,8.592e-05,2]
[421135362,1777141832318,-500.0,8.592e-05,2]
[421135363,1777141832333,-500.0,8.592e-05,2]
[421135364,1777141832356,-500.0,8.592e-05,2]
[421135365,1777141832374,-500.0,8.592e-05,2]
[421135366,1777141832398,-550.0,8.592e-05,2]
[421135367,1777141832413,-500.0,8.592e-05,2]
[421135368,1777141832431,-500.0,8.592e-05,2]
[421135369,1777141832449,-500.0,8.592e-05,2]
[421135370,1777141832469,-33091.4848,8.593e-05,2]
[421135371,1777141832488,-2500.0,8.593e-05,2]
[421135372,1777141832503,-1300.0,8.6e-05,3]
[421135373,1777141832528,-150.0,8.623e-05,2]
[421135374,1777141832544,-151.0,8.633e-05,2]
[421135375,1777141832562,-150.0,8.685e-05,2]
[421135376,1777141832579,-150.0,8.685e-05,2]
[421135377,1777141832596,-150.0,8.685e-05,2]
[421135378,1777141832615,-150.0,8.685e-05,2]
[421135379,1777141832632,-151.0,8.688e-05,2]
[421135380,1777141832649,-670.58624095,8.688e-05,2]
[421135381,1777141832666,-151.0,8.69e-05,2]
[421135382,1777141832684,-500.0,8.692e-05,2]
[421135383,1777141832701,-500.0,8.692e-05,2]
[421135384,1777141832719,-496.32419304,8.692e-05,2]
[421135385,1777141832736,-500.0,8.692e-05,2]
[421135386,1777141832753,-500.0,8.692e-05,2]
[421135387,1777141832770,-500.0,8.692e-05,2]
[421135388,1777141832788,-500.0,8.692e-05,2]
[421135389,1777141832805,-500.0,8.692e-05,2]
[421135390,1777141832823,-500.0,8.692e-05,2]
[421135391,1777141832840,-500.0,8.692e-05,2]
[421135392,1777141832858,-500.0,8.692e-05,2]
[421135393,1777141832876,-500.0,8.692e-05,2]
[421135394,1777141832894,-500.0,8.692e-05,2]
[421135395,1777141832910,-500.0,8.692e-05,2]
[421135396,1777141832928,-500.0,8.692e-05,2]
[421135397,1777141832945,-500.0,8.692e-05,2]
[421135398,1777141832963,-500.0,8.692e-05,2]
[421135399,1777141832979,-500.0,8.692e-05,2]
[421135400,1777141832996,-500.0,8.692e-05,2]
[421135401,1777141833014,-500.0,8.692e-05,2]
[421135402,1777141833031,-150.0,8.692e-05,2]
[421135403,1777141833049,-500.0,8.692e-05,2]
[421135404,1777141833066,-500.0,8.692e-05,2]
[421135405,1777141833083,-500.0,8.692e-05,2]
[421135406,1777141833100,-500.0,8.692e-05,2]
[421135407,1777141833116,-546.0,8.693e-05,5]
[421135408,1777141833133,-22900.35514555,8.693e-05,2]
[421135409,1777141833157,-65671.37036262,8.693e-05,2]
[421135410,1777141833175,-151.0,8.697e-05,2]
[421135411,1777141833192,-152.0,8.697e-05,2]
[421135412,1777141833209,-154.35640537,8.697e-05,2]
[421135413,1777141833226,-153.27330215,8.697e-05,2]
[421135414,1777141833244,-155.362,8.699e-05,2]
[421135415,1777141833261,-1018.00837152,8.699e-05,3]
[421135416,1777141833278,-150.0,8.699e-05,2]
[421135417,1777141833294,-150.0,8.699e-05,2]
[421135418,1777141833312,-150.0,8.699e-05,2]
[421135419,1777141833329,-736.0,8.7e-05,5]
[421135420,1777141833347,-691.0,8.7e-05,5]
[421135421,1777141833377,-250.0,8.7e-05,2]
[421135422,1777141833402,-43362.08822791,8.7e-05,2]
[421135423,1777141833433,-6073.73878473,8.7e-05,2]
[421135424,1777141837973,-152.0,8.662e-05,7]
[421135425,1777141837984,-152.0,8.662e-05,7]
[421135426,1777141837995,-12639.0499912,8.7e-05,2]
[421135510,1777142713678,150.0,7.816e-05,2]
[421135511,1777142713737,150.0,8.106e-05,2]
[421135512,1777142713921,150.0,7.816e-05,2]
[421135513,1777142713974,150.0,8.251e-05,2]
[421135514,1777142715018,150.0,7.816e-05,2]
[421135515,1777142716843,150.0,7.816e-05,2]
[421135516,1777142716910,150.0,8.106e-05,2]
[421135517,1777142721385,150.5557287,7.816e-05,2]
[421135518,1777142721450,150.0,7.816e-05,2]
[421135519,1777142721515,150.0,8.251e-05,2]
[421135520,1777142721678,150.0,7.816e-05,2]
[421135521,1777142721736,150.0,8.251e-05,2]